[Event "*** Titled Tuesday Blitz"]
[Site "Chess.com"]
[Date "2020.12.29"]
[Round "3"]
[White "Yoda1992"]
[Black "ulkaf961"]
[Result "1/2-1/2"]
[WhiteElo "2497"]
[BlackElo "2266"]
[TimeControl "180+1"]
[EndTime "10:28:39 PST"]
[Termination "Game drawn by repetition"]

1. d4 {[%clk 0:02:59.2]} 1... d5 {[%clk 0:02:59.5]} 2. Bf4 {[%clk 0:02:57]} 2...
Nf6 {[%clk 0:02:56.2]} 3. e3 {[%clk 0:02:57]} 3... e6 {[%clk 0:02:55]} 4. Bd3
{[%clk 0:02:56.7]} 4... Bd6 {[%clk 0:02:55.2]} 5. Bg3 {[%clk 0:02:56.8]} 5...
O-O {[%clk 0:02:55.3]} 6. f4 {[%clk 0:02:56]} 6... c5 {[%clk 0:02:55.1]} 7. c3
{[%clk 0:02:55.9]} 7... cxd4 {[%clk 0:02:49.2]} 8. exd4 {[%clk 0:02:55.4]} 8...
Ne4 {[%clk 0:02:49.3]} 9. Qc2 {[%clk 0:02:40.5]} 9... f5 {[%clk 0:02:48.2]} 10.
Nf3 {[%clk 0:02:36.6]} 10... Nc6 {[%clk 0:02:43]} 11. Nbd2 {[%clk 0:02:34.1]}
11... Bd7 {[%clk 0:02:42.7]} 12. Bh4 {[%clk 0:02:27.3]} 12... Qb6 {[%clk
0:02:24.4]} 13. Ne5 {[%clk 0:02:08]} 13... Bxe5 {[%clk 0:01:48.5]} 14. fxe5
{[%clk 0:02:05.4]} 14... Rac8 {[%clk 0:01:42.6]} 15. Nb3 {[%clk 0:01:37.3]}
15... Nb4 {[%clk 0:01:33.6]} 16. Qd1 {[%clk 0:01:37.4]} 16... Nxd3+ {[%clk
0:01:31.7]} 17. Qxd3 {[%clk 0:01:38.3]} 17... Bb5 {[%clk 0:01:31.4]} 18. Qf3
{[%clk 0:01:28.5]} 18... a5 {[%clk 0:01:23.6]} 19. Bf2 {[%clk 0:01:25.1]} 19...
Ba6 {[%clk 0:01:14.9]} 20. Rb1 {[%clk 0:01:18.1]} 20... a4 {[%clk 0:01:03.1]}
21. Nc5 {[%clk 0:01:17]} 21... Nxc5 {[%clk 0:01:01.6]} 22. dxc5 {[%clk
0:01:17.9]} 22... Qc7 {[%clk 0:00:58.8]} 23. Bd4 {[%clk 0:01:14.3]} 23... Bc4
{[%clk 0:00:55.1]} 24. b3 {[%clk 0:01:11.1]} 24... axb3 {[%clk 0:00:54.6]} 25.
axb3 {[%clk 0:01:11.6]} 25... Ba6 {[%clk 0:00:54.8]} 26. Kd2 {[%clk 0:00:57.5]}
26... f4 {[%clk 0:00:47.6]} 27. Ra1 {[%clk 0:00:49.7]} 27... Rf5 {[%clk
0:00:46.8]} 28. h4 {[%clk 0:00:46.4]} 28... Rxe5 {[%clk 0:00:44]} 29. Bxe5
{[%clk 0:00:47.1]} 29... Qxe5 {[%clk 0:00:43.9]} 30. Rhe1 {[%clk 0:00:47.6]}
30... Qf5 {[%clk 0:00:43.9]} 31. Rxa6 {[%clk 0:00:40.5]} 31... bxa6 {[%clk
0:00:43.5]} 32. Qe2 {[%clk 0:00:41]} 32... Kf7 {[%clk 0:00:36.7]} 33. Qxa6
{[%clk 0:00:39.7]} 33... Re8 {[%clk 0:00:34.1]} 34. Qd6 {[%clk 0:00:34]} 34...
Ra8 {[%clk 0:00:31.2]} 35. Ke2 {[%clk 0:00:15.4]} 35... Ra2+ {[%clk 0:00:24.4]}
36. Kf1 {[%clk 0:00:14.4]} 36... Qg4 {[%clk 0:00:22.6]} 37. Qd7+ {[%clk
0:00:13.2]} 37... Kf6 {[%clk 0:00:22.6]} 38. Qd8+ {[%clk 0:00:13.5]} 38... Kf7
{[%clk 0:00:22.4]} 39. Qd7+ {[%clk 0:00:13.3]} 39... Kf6 {[%clk 0:00:21.6]} 40.
Qd8+ {[%clk 0:00:12.6]} 40... Kf7 {[%clk 0:00:16.5]} 41. Qd7+ {[%clk 0:00:07.9]}
1/2-1/2

[Event "*** Titled Tuesday Blitz"]
[Site "Chess.com"]
[Date "2020.12.29"]
[Round "3"]
[White "seorobert1971"]
[Black "albi1999"]
[Result "1/2-1/2"]
[WhiteElo "2761"]
[BlackElo "2530"]
[TimeControl "180+1"]
[EndTime "10:28:40 PST"]
[Termination "Game drawn by repetition"]

1. e4 {[%clk 0:03:00.9]} 1... e5 {[%clk 0:02:57.2]} 2. Nf3 {[%clk 0:03:00.9]}
2... Nc6 {[%clk 0:02:54.8]} 3. Bb5 {[%clk 0:03:00.4]} 3... a6 {[%clk 0:02:52.4]}
4. Ba4 {[%clk 0:03:00.2]} 4... d6 {[%clk 0:02:52]} 5. c3 {[%clk 0:02:59.5]} 5...
Bd7 {[%clk 0:02:51.7]} 6. Bc2 {[%clk 0:02:59]} 6... g6 {[%clk 0:02:50.8]} 7. d4
{[%clk 0:02:58.5]} 7... Bg7 {[%clk 0:02:51.3]} 8. O-O {[%clk 0:02:58]} 8... Nf6
{[%clk 0:02:50.4]} 9. Re1 {[%clk 0:02:56.6]} 9... O-O {[%clk 0:02:50.4]} 10. h3
{[%clk 0:02:56.3]} 10... h6 {[%clk 0:02:50.2]} 11. Nbd2 {[%clk 0:02:55.8]} 11...
Nh5 {[%clk 0:02:46.7]} 12. Nf1 {[%clk 0:02:53.9]} 12... Qf6 {[%clk 0:02:38.1]}
13. Be3 {[%clk 0:02:51.8]} 13... Rad8 {[%clk 0:02:34.3]} 14. N1h2 {[%clk
0:02:50.3]} 14... Nf4 {[%clk 0:02:29.1]} 15. Nf1 {[%clk 0:02:47.8]} 15... h5
{[%clk 0:02:21.6]} 16. Ng3 {[%clk 0:02:42.9]} 16... Rfe8 {[%clk 0:02:02.4]} 17.
Rb1 {[%clk 0:02:38.6]} 17... Bc8 {[%clk 0:01:55.8]} 18. a3 {[%clk 0:02:36.6]}
18... Ne7 {[%clk 0:01:56]} 19. Nh2 {[%clk 0:02:32.4]} 19... Bh6 {[%clk
0:01:51.3]} 20. Ne2 {[%clk 0:02:29.1]} 20... g5 {[%clk 0:01:45.9]} 21. Ng3
{[%clk 0:02:24.8]} 21... Qg6 {[%clk 0:01:41.2]} 22. Qf3 {[%clk 0:02:08.7]} 22...
Kh8 {[%clk 0:01:25.8]} 23. Bxf4 {[%clk 0:01:50.5]} 23... gxf4 {[%clk 0:01:14.2]}
24. Nxh5 {[%clk 0:01:44.4]} 24... Rg8 {[%clk 0:01:12.5]} 25. Kh1 {[%clk
0:01:43.6]} 25... Nc6 {[%clk 0:01:03.5]} 26. d5 {[%clk 0:01:36.2]} 26... Nb8
{[%clk 0:01:00.1]} 27. Rg1 {[%clk 0:01:33.5]} 27... Nd7 {[%clk 0:00:51.5]} 28.
g3 {[%clk 0:01:29.9]} 28... Nf6 {[%clk 0:00:47.8]} 29. Nxf6 {[%clk 0:01:20.7]}
29... Qxf6 {[%clk 0:00:48.7]} 30. gxf4 {[%clk 0:01:14.2]} 30... Bxf4 {[%clk
0:00:47.2]} 31. Ng4 {[%clk 0:01:13.8]} 31... Qh4 {[%clk 0:00:46.8]} 32. Rg2
{[%clk 0:01:11.3]} 32... Rg5 {[%clk 0:00:45]} 33. Rbg1 {[%clk 0:01:10.9]} 33...
Rdg8 {[%clk 0:00:44.5]} 34. Bd3 {[%clk 0:01:01.5]} 34... Bxg4 {[%clk 0:00:13.2]}
35. Rxg4 {[%clk 0:01:01]} 35... Rxg4 {[%clk 0:00:13.6]} 36. Rxg4 {[%clk
0:01:01]} 36... Rxg4 {[%clk 0:00:13.8]} 37. Qxg4 {[%clk 0:01:01.1]} 37... Qxf2
{[%clk 0:00:14]} 38. Qh5+ {[%clk 0:00:59.1]} 38... Kg7 {[%clk 0:00:12.8]} 39.
Qe2 {[%clk 0:00:58.4]} 39... Qg3 {[%clk 0:00:09.1]} 40. Qg2 {[%clk 0:00:57.5]}
40... Qxg2+ {[%clk 0:00:09.3]} 41. Kxg2 {[%clk 0:00:57.5]} 41... Kh6 {[%clk
0:00:10.2]} 42. a4 {[%clk 0:00:56.8]} 42... a5 {[%clk 0:00:09.6]} 43. b3 {[%clk
0:00:56.1]} 43... b6 {[%clk 0:00:09.4]} 44. Be2 {[%clk 0:00:56.1]} 44... Kg5
{[%clk 0:00:09.7]} 45. Bg4 {[%clk 0:00:56.1]} 45... Kh4 {[%clk 0:00:09.9]} 46.
Kf3 {[%clk 0:00:55]} 46... f6 {[%clk 0:00:10.5]} 47. c4 {[%clk 0:00:54.8]} 47...
Bd2 {[%clk 0:00:10.3]} 48. Bf5 {[%clk 0:00:53.7]} 48... Bb4 {[%clk 0:00:10]} 49.
Bg4 {[%clk 0:00:53.4]} 49... Bc5 {[%clk 0:00:10.3]} 50. Be6 {[%clk 0:00:49.9]}
50... Bd4 {[%clk 0:00:10.5]} 51. Bf5 {[%clk 0:00:49.9]} 51... Bc5 {[%clk
0:00:10.9]} 52. Be6 {[%clk 0:00:49.9]} 52... Bd4 {[%clk 0:00:11.4]} 53. Bf5
{[%clk 0:00:50]} 53... Bc5 {[%clk 0:00:12]} 54. Be6 {[%clk 0:00:49.8]} 1/2-1/2

[Event "*** Titled Tuesday Blitz"]
[Site "Chess.com"]
[Date "2020.12.29"]
[Round "3"]
[White "maheswaran26"]
[Black "anon481216"]
[Result "0-1"]
[WhiteElo "2244"]
[BlackElo "2434"]
[TimeControl "180+1"]
[EndTime "10:28:41 PST"]
[Termination "anon481216 won by resignation"]

1. d4 {[%clk 0:02:59.1]} 1... Nf6 {[%clk 0:02:58.9]} 2. Nf3 {[%clk 0:02:58.6]}
2... e6 {[%clk 0:02:58.7]} 3. c4 {[%clk 0:02:58.5]} 3... d5 {[%clk 0:02:58]} 4.
g3 {[%clk 0:02:57.8]} 4... dxc4 {[%clk 0:02:57.5]} 5. Bg2 {[%clk 0:02:57.4]}
5... Nc6 {[%clk 0:02:58.1]} 6. O-O {[%clk 0:02:57.2]} 6... Rb8 {[%clk
0:02:56.2]} 7. a4 {[%clk 0:02:56.2]} 7... a6 {[%clk 0:02:51.2]} 8. Nc3 {[%clk
0:02:53.5]} 8... Bb4 {[%clk 0:02:41.1]} 9. Ne5 {[%clk 0:02:52.1]} 9... Nxe5
{[%clk 0:02:19.3]} 10. dxe5 {[%clk 0:02:51.5]} 10... Nd7 {[%clk 0:02:12.2]} 11.
Qd4 {[%clk 0:02:43.3]} 11... b5 {[%clk 0:02:10.5]} 12. Bc6 {[%clk 0:02:40.7]}
12... Bxc3 {[%clk 0:01:37.1]} 13. bxc3 {[%clk 0:02:40]} 13... Rb6 {[%clk
0:01:36.4]} 14. axb5 {[%clk 0:02:25.3]} 14... axb5 {[%clk 0:01:35.9]} 15. Bxd7+
{[%clk 0:01:47.6]} 15... Qxd7 {[%clk 0:01:35.6]} 16. Qc5 {[%clk 0:01:43.7]}
16... Qe7 {[%clk 0:01:15.9]} 17. Qxe7+ {[%clk 0:01:39.6]} 17... Kxe7 {[%clk
0:01:15.7]} 18. Ba3+ {[%clk 0:01:39.8]} 18... Kd7 {[%clk 0:01:15.5]} 19. Bc5
{[%clk 0:01:37.7]} 19... Rb8 {[%clk 0:01:10.7]} 20. Rfd1+ {[%clk 0:01:32.8]}
20... Kc6 {[%clk 0:01:10.7]} 21. Bb4 {[%clk 0:01:28.3]} 21... Bb7 {[%clk
0:01:09.5]} 22. f3 {[%clk 0:01:14.1]} 22... Rhd8 {[%clk 0:01:08.3]} 23. Kf2
{[%clk 0:01:12.9]} 23... Rxd1 {[%clk 0:01:07]} 24. Rxd1 {[%clk 0:01:12.3]} 24...
Ra8 {[%clk 0:01:07.6]} 25. g4 {[%clk 0:01:05.8]} 25... Kb6 {[%clk 0:00:48]} 26.
Rd7 {[%clk 0:01:04.7]} 26... Bc8 {[%clk 0:00:40.2]} 27. Rxf7 {[%clk 0:00:36.2]}
27... c5 {[%clk 0:00:40]} 28. Bxc5+ {[%clk 0:00:33.6]} 28... Kxc5 {[%clk
0:00:40.1]} 29. Rxg7 {[%clk 0:00:33.2]} 29... b4 {[%clk 0:00:40]} 30. cxb4+
{[%clk 0:00:30.9]} 30... Kxb4 {[%clk 0:00:40.2]} 31. Ke3 {[%clk 0:00:30.4]}
31... c3 {[%clk 0:00:38.8]} 32. Rxh7 {[%clk 0:00:28.2]} 32... Ba6 {[%clk
0:00:34.7]} 33. Rc7 {[%clk 0:00:25.6]} 33... Bc4 {[%clk 0:00:32.3]} 34. Rb7+
{[%clk 0:00:25]} 34... Bb5 {[%clk 0:00:30.3]} 35. Rc7 {[%clk 0:00:25]} 35... Bc4
{[%clk 0:00:22.7]} 36. Rb7+ {[%clk 0:00:23.7]} 36... Ka3 {[%clk 0:00:23]} 37.
Rc7 {[%clk 0:00:22.4]} 37... Kb3 {[%clk 0:00:22.9]} 38. Rb7+ {[%clk 0:00:22]}
38... Ka2 {[%clk 0:00:20.6]} 39. Rc7 {[%clk 0:00:21.6]} 39... Ra4 {[%clk
0:00:20.8]} 40. Kd4 {[%clk 0:00:19.8]} 40... c2 {[%clk 0:00:19.7]} 0-1

[Event "*** Titled Tuesday Blitz"]
[Site "Chess.com"]
[Date "2020.12.29"]
[Round "3"]
[White "pavelalexandru07"]
[Black "ChessyInstinct"]
[Result "0-1"]
[WhiteElo "2286"]
[BlackElo "2516"]
[TimeControl "180+1"]
[EndTime "10:28:42 PST"]
[Termination "ChessyInstinct won on time"]

1. d4 {[%clk 0:03:00.9]} 1... d5 {[%clk 0:03:00.3]} 2. c4 {[%clk 0:02:59.6]}
2... c6 {[%clk 0:03:00.8]} 3. cxd5 {[%clk 0:02:57.6]} 3... cxd5 {[%clk
0:02:59.9]} 4. Nc3 {[%clk 0:02:58.5]} 4... Nf6 {[%clk 0:02:58.9]} 5. Bf4 {[%clk
0:02:57.1]} 5... Nc6 {[%clk 0:02:57.2]} 6. e3 {[%clk 0:02:57.1]} 6... a6 {[%clk
0:02:56.5]} 7. h3 {[%clk 0:02:56.3]} 7... e6 {[%clk 0:02:55.9]} 8. Bd3 {[%clk
0:02:52.4]} 8... Be7 {[%clk 0:02:50.8]} 9. Nf3 {[%clk 0:02:45.7]} 9... b5 {[%clk
0:02:48]} 10. Rc1 {[%clk 0:02:35.5]} 10... Bb7 {[%clk 0:02:47.9]} 11. O-O {[%clk
0:02:33.6]} 11... O-O {[%clk 0:02:45.9]} 12. Ne5 {[%clk 0:02:31.8]} 12... Rc8
{[%clk 0:02:22.7]} 13. f3 {[%clk 0:02:18]} 13... Nxe5 {[%clk 0:01:42.6]} 14.
dxe5 {[%clk 0:01:52.2]} 14... Nh5 {[%clk 0:01:41.6]} 15. Bh2 {[%clk 0:01:50.8]}
15... Qb6 {[%clk 0:01:38.6]} 16. Qd2 {[%clk 0:01:43.2]} 16... Bc5 {[%clk
0:01:34.7]} 17. Rfe1 {[%clk 0:01:37.3]} 17... g6 {[%clk 0:01:23.9]} 18. g4
{[%clk 0:01:31.1]} 18... Ng7 {[%clk 0:01:19.9]} 19. Kg2 {[%clk 0:01:31.4]} 19...
Rfd8 {[%clk 0:01:13.5]} 20. Nd1 {[%clk 0:00:50.2]} 20... Be7 {[%clk 0:01:01.8]}
21. a3 {[%clk 0:00:44]} 21... b4 {[%clk 0:00:51.2]} 22. a4 {[%clk 0:00:42]}
22... a5 {[%clk 0:00:44.5]} 23. b3 {[%clk 0:00:41.2]} 23... Rxc1 {[%clk
0:00:33]} 24. Qxc1 {[%clk 0:00:41.1]} 24... Rc8 {[%clk 0:00:33.9]} 25. Qd2
{[%clk 0:00:41.6]} 25... Qc7 {[%clk 0:00:26.7]} 26. f4 {[%clk 0:00:36.6]} 26...
Qc1 {[%clk 0:00:15]} 27. Qe2 {[%clk 0:00:35.5]} 27... Bh4 {[%clk 0:00:09]} 28.
Rf1 {[%clk 0:00:33.4]} 28... Qa3 {[%clk 0:00:06.6]} 29. f5 {[%clk 0:00:05.9]}
29... exf5 {[%clk 0:00:06.6]} 30. gxf5 {[%clk 0:00:06]} 30... Qxb3 {[%clk
0:00:07.1]} 31. f6 {[%clk 0:00:05.4]} 31... Nh5 {[%clk 0:00:06.8]} 32. Nf2
{[%clk 0:00:02.6]} 32... d4+ {[%clk 0:00:06.3]} 33. e4 {[%clk 0:00:02.9]} 33...
Bxf2 {[%clk 0:00:04.8]} 34. Rxf2 {[%clk 0:00:02.9]} 34... Rc3 {[%clk 0:00:05.3]}
35. Bb5 {[%clk 0:00:01.5]} 35... d3 {[%clk 0:00:04.3]} 36. Qg4 {[%clk
0:00:01.5]} 36... Rc2 {[%clk 0:00:02.8]} 0-1

[Event "*** Titled Tuesday Blitz"]
[Site "Chess.com"]
[Date "2020.12.29"]
[Round "3"]
[White "Rozum_Ivan"]
[Black "1random"]
[Result "1-0"]
[WhiteElo "2745"]
[BlackElo "2431"]
[TimeControl "180+1"]
[EndTime "10:28:43 PST"]
[Termination "Rozum_Ivan won on time"]

1. c4 {[%clk 0:03:00.9]} 1... e6 {[%clk 0:02:49.6]} 2. Nc3 {[%clk 0:02:58.7]}
2... d5 {[%clk 0:02:49.9]} 3. d4 {[%clk 0:02:58.8]} 3... a6 {[%clk 0:02:48.9]}
4. cxd5 {[%clk 0:02:57.6]} 4... exd5 {[%clk 0:02:49.8]} 5. Nf3 {[%clk
0:02:57.9]} 5... Nf6 {[%clk 0:02:50.5]} 6. Bg5 {[%clk 0:02:57.6]} 6... Be6
{[%clk 0:02:51.3]} 7. e3 {[%clk 0:02:57.4]} 7... Nbd7 {[%clk 0:02:51.3]} 8. Bd3
{[%clk 0:02:57.5]} 8... c6 {[%clk 0:02:52]} 9. O-O {[%clk 0:02:56.6]} 9... h6
{[%clk 0:02:52.7]} 10. Bh4 {[%clk 0:02:55]} 10... g5 {[%clk 0:02:45.1]} 11. Bg3
{[%clk 0:02:54.5]} 11... Nh5 {[%clk 0:02:45.9]} 12. e4 {[%clk 0:02:46.3]} 12...
Nxg3 {[%clk 0:02:41.3]} 13. hxg3 {[%clk 0:02:43.7]} 13... dxe4 {[%clk
0:02:26.9]} 14. Nxe4 {[%clk 0:02:44.6]} 14... Nf6 {[%clk 0:02:06.5]} 15. Re1
{[%clk 0:02:41.4]} 15... Nxe4 {[%clk 0:01:27.9]} 16. Bxe4 {[%clk 0:02:42.3]}
16... Qd6 {[%clk 0:01:15.5]} 17. d5 {[%clk 0:02:36.9]} 17... cxd5 {[%clk
0:01:16.4]} 18. Bxd5 {[%clk 0:02:37.3]} 18... O-O-O {[%clk 0:01:16.3]} 19. Bxe6+
{[%clk 0:02:36.4]} 19... fxe6 {[%clk 0:01:16.3]} 20. Qb3 {[%clk 0:02:29.4]}
20... Bg7 {[%clk 0:00:57.6]} 21. Rxe6 {[%clk 0:02:23.5]} 21... Qd5 {[%clk
0:00:46.8]} 22. Re7 {[%clk 0:01:56.8]} 22... Qxb3 {[%clk 0:00:46.8]} 23. Rc1+
{[%clk 0:01:49.7]} 23... Qc3 {[%clk 0:00:39.8]} 24. bxc3 {[%clk 0:01:45.5]}
24... Rd7 {[%clk 0:00:39.1]} 25. Rxd7 {[%clk 0:01:40.2]} 25... Kxd7 {[%clk
0:00:40]} 26. Kf1 {[%clk 0:01:29.3]} 26... Rc8 {[%clk 0:00:37.7]} 27. c4 {[%clk
0:01:29.8]} 27... Kc6 {[%clk 0:00:23.9]} 28. Ke2 {[%clk 0:01:28.4]} 28... Re8+
{[%clk 0:00:22.3]} 29. Kd3 {[%clk 0:01:28.3]} 29... Rd8+ {[%clk 0:00:22.5]} 30.
Ke4 {[%clk 0:01:28.7]} 30... g4 {[%clk 0:00:19.6]} 31. Ne1 {[%clk 0:01:08.6]}
31... Rd2 {[%clk 0:00:18.4]} 32. Rc2 {[%clk 0:01:05]} 32... Rd1 {[%clk
0:00:10.7]} 33. Nd3 {[%clk 0:01:03.9]} 33... h5 {[%clk 0:00:10]} 34. Nf4 {[%clk
0:01:02.4]} 34... Rh1 {[%clk 0:00:08.5]} 35. Kf5 {[%clk 0:01:00]} 35... Bd4
{[%clk 0:00:07.3]} 36. Kg5 {[%clk 0:00:58.6]} 36... Rf1 {[%clk 0:00:07.1]} 37.
Kxh5 {[%clk 0:00:36]} 37... Bxf2 {[%clk 0:00:07.6]} 38. Kxg4 {[%clk 0:00:35.5]}
38... Be3 {[%clk 0:00:04.1]} 39. Kf5 {[%clk 0:00:34.1]} 39... Kc5 {[%clk
0:00:02.6]} 40. Ke4 {[%clk 0:00:34.3]} 40... Bc1 {[%clk 0:00:02.2]} 41. Nd3+
{[%clk 0:00:34.4]} 41... Kc6 {[%clk 0:00:01.2]} 42. Rxc1 {[%clk 0:00:34.5]}
42... Rf8 {[%clk 0:00:01.2]} 43. g4 {[%clk 0:00:34]} 43... Re8+ {[%clk
0:00:01.8]} 44. Ne5+ {[%clk 0:00:30.9]} 44... Kc5 {[%clk 0:00:01.5]} 45. g5
{[%clk 0:00:30.9]} 1-0

[Event "*** Titled Tuesday Blitz"]
[Site "Chess.com"]
[Date "2020.12.29"]
[Round "3"]
[White "Moon_stone123"]
[Black "OK97"]
[Result "0-1"]
[WhiteElo "2445"]
[BlackElo "2796"]
[TimeControl "180+1"]
[EndTime "10:28:43 PST"]
[Termination "OK97 won by resignation"]

1. e4 {[%clk 0:03:00.9]} 1... g6 {[%clk 0:02:58.8]} 2. d4 {[%clk 0:02:59.8]}
2... Bg7 {[%clk 0:02:59.3]} 3. Nc3 {[%clk 0:02:57.8]} 3... d6 {[%clk 0:02:59.8]}
4. Bg5 {[%clk 0:02:57.3]} 4... a6 {[%clk 0:02:58.5]} 5. f4 {[%clk 0:02:56.5]}
5... b5 {[%clk 0:02:56.7]} 6. Nf3 {[%clk 0:02:56]} 6... Bb7 {[%clk 0:02:56.7]}
7. Bd3 {[%clk 0:02:55.5]} 7... Nd7 {[%clk 0:02:48.7]} 8. O-O {[%clk 0:02:53.6]}
8... c5 {[%clk 0:02:42]} 9. dxc5 {[%clk 0:02:34.4]} 9... Nxc5 {[%clk 0:02:39.8]}
10. Qe2 {[%clk 0:02:30.2]} 10... h6 {[%clk 0:02:17.9]} 11. Bh4 {[%clk
0:02:25.1]} 11... Nf6 {[%clk 0:02:18.2]} 12. e5 {[%clk 0:01:47.6]} 12... Nh5
{[%clk 0:02:12.5]} 13. exd6 {[%clk 0:01:15.4]} 13... Qxd6 {[%clk 0:02:09.4]} 14.
Rae1 {[%clk 0:00:50.9]} 14... e6 {[%clk 0:02:07.5]} 15. Ne5 {[%clk 0:00:49]}
15... O-O {[%clk 0:01:52.4]} 16. Kh1 {[%clk 0:00:14.6]} 16... b4 {[%clk
0:01:32]} 17. Nd1 {[%clk 0:00:12.5]} 17... Rac8 {[%clk 0:01:22.9]} 18. Qg4
{[%clk 0:00:11.9]} 18... Nxd3 {[%clk 0:01:13.3]} 19. cxd3 {[%clk 0:00:11.9]}
19... Rc2 {[%clk 0:01:09.3]} 20. Ne3 {[%clk 0:00:10.2]} 20... Rc5 {[%clk
0:00:52.8]} 21. N3c4 {[%clk 0:00:09.7]} 21... Qd5 {[%clk 0:00:49.2]} 22. Be7
{[%clk 0:00:08.6]} 22... Nf6 {[%clk 0:00:47.3]} 23. Qg3 {[%clk 0:00:07.2]} 23...
Nh5 {[%clk 0:00:44.8]} 24. Qg4 {[%clk 0:00:07]} 24... Rfc8 {[%clk 0:00:37.8]}
25. Bxc5 {[%clk 0:00:06.5]} 25... Rxc5 {[%clk 0:00:38.7]} 26. h3 {[%clk
0:00:05.5]} 26... Nf6 {[%clk 0:00:37.5]} 27. Qg3 {[%clk 0:00:05.5]} 27... Nh5
{[%clk 0:00:34.5]} 28. Qg4 {[%clk 0:00:06]} 28... Qd4 {[%clk 0:00:32.7]} 29. Re2
{[%clk 0:00:04.6]} 29... Nf6 {[%clk 0:00:28]} 30. Qg3 {[%clk 0:00:04.5]} 30...
Nh5 {[%clk 0:00:21.5]} 31. Qg4 {[%clk 0:00:04.9]} 31... Rc8 {[%clk 0:00:21.7]}
32. Ref2 {[%clk 0:00:05.1]} 32... Nf6 {[%clk 0:00:19.6]} 33. Qg3 {[%clk
0:00:05.2]} 33... Nh5 {[%clk 0:00:16.7]} 34. Qg4 {[%clk 0:00:05.7]} 34... Rd8
{[%clk 0:00:17.4]} 35. f5 {[%clk 0:00:05.2]} 35... exf5 {[%clk 0:00:15.2]} 36.
Rxf5 {[%clk 0:00:05.2]} 36... Qxg4 {[%clk 0:00:13.4]} 37. Nxg4 {[%clk
0:00:03.6]} 37... gxf5 {[%clk 0:00:13.3]} 38. Rxf5 {[%clk 0:00:03.9]} 38... Ng3+
{[%clk 0:00:13.6]} 39. Kh2 {[%clk 0:00:03.6]} 39... Nxf5 {[%clk 0:00:14.1]} 40.
Na5 {[%clk 0:00:03]} 40... Ba8 {[%clk 0:00:13.2]} 41. b3 {[%clk 0:00:03.4]}
41... Rxd3 {[%clk 0:00:13.4]} 0-1

[Event "*** Titled Tuesday Blitz"]
[Site "Chess.com"]
[Date "2020.12.29"]
[Round "3"]
[White "Denis_Palkovich"]
[Black "Sueetin"]
[Result "1-0"]
[WhiteElo "2303"]
[BlackElo "2492"]
[TimeControl "180+1"]
[EndTime "10:28:43 PST"]
[Termination "Denis_Palkovich won on time"]

1. d4 {[%clk 0:03:00.9]} 1... Nf6 {[%clk 0:02:59.9]} 2. Bf4 {[%clk 0:03:00.2]}
2... e6 {[%clk 0:02:59.4]} 3. e3 {[%clk 0:03:00.5]} 3... c5 {[%clk 0:02:59.6]}
4. c3 {[%clk 0:02:59.8]} 4... b6 {[%clk 0:02:56.7]} 5. Nf3 {[%clk 0:02:58.9]}
5... Bb7 {[%clk 0:02:56.8]} 6. Nbd2 {[%clk 0:02:58.9]} 6... Be7 {[%clk
0:02:55.8]} 7. h3 {[%clk 0:02:58.8]} 7... cxd4 {[%clk 0:02:55.5]} 8. exd4 {[%clk
0:02:58.5]} 8... d6 {[%clk 0:02:55.8]} 9. Bd3 {[%clk 0:02:55.1]} 9... Nbd7
{[%clk 0:02:55.2]} 10. O-O {[%clk 0:02:52]} 10... O-O {[%clk 0:02:55.2]} 11. Qe2
{[%clk 0:02:50.8]} 11... a6 {[%clk 0:02:52.5]} 12. a4 {[%clk 0:02:49.4]} 12...
Re8 {[%clk 0:02:50.9]} 13. Rad1 {[%clk 0:02:46.8]} 13... Qc7 {[%clk 0:02:50.6]}
14. Rfe1 {[%clk 0:02:44]} 14... Bf8 {[%clk 0:02:50.5]} 15. Ng5 {[%clk
0:02:34.8]} 15... h6 {[%clk 0:02:37.7]} 16. Nge4 {[%clk 0:02:33.9]} 16... Nd5
{[%clk 0:02:32.7]} 17. Bh2 {[%clk 0:02:26.1]} 17... Bc6 {[%clk 0:02:27.9]} 18.
Nc4 {[%clk 0:01:58.5]} 18... Bxa4 {[%clk 0:02:19.1]} 19. Ra1 {[%clk 0:01:57.5]}
19... Bb5 {[%clk 0:01:54.2]} 20. Nexd6 {[%clk 0:01:49.5]} 20... Bxd6 {[%clk
0:01:34.4]} 21. Nxd6 {[%clk 0:01:34.5]} 21... Bxd3 {[%clk 0:01:34]} 22. Qxd3
{[%clk 0:01:01.2]} 22... Rf8 {[%clk 0:00:55.7]} 23. Nxf7 {[%clk 0:00:57.2]}
23... Qc6 {[%clk 0:00:49.7]} 24. Nxh6+ {[%clk 0:00:49.1]} 24... Kh8 {[%clk
0:00:40.8]} 25. Ng4 {[%clk 0:00:41.8]} 25... b5 {[%clk 0:00:36]} 26. Qg6 {[%clk
0:00:38.4]} 26... N7f6 {[%clk 0:00:31]} 27. Re5 {[%clk 0:00:19.8]} 27... Kg8
{[%clk 0:00:19.8]} 28. Rae1 {[%clk 0:00:18.7]} 28... Ne7 {[%clk 0:00:13]} 29.
Qg5 {[%clk 0:00:14.5]} 29... Nxg4 {[%clk 0:00:08.6]} 30. Qxg4 {[%clk 0:00:13.8]}
30... Nf5 {[%clk 0:00:04.6]} 31. Rxe6 {[%clk 0:00:13.7]} 31... Qd5 {[%clk
0:00:03.6]} 32. R1e5 {[%clk 0:00:12.7]} 32... Qb3 {[%clk 0:00:03.4]} 33. Bf4
{[%clk 0:00:07.7]} 33... Qc2 {[%clk 0:00:02.5]} 34. Rg6 {[%clk 0:00:05.2]} 34...
Rf7 {[%clk 0:00:02.2]} 35. h4 {[%clk 0:00:03.7]} 1-0